bitfinex-derivatives/quotes_SOLF0:USTF0_20250613
["timestamp","ask_amount","ask_price","bid_price","bid_amount"]
[1749816019232,6.8787,145.31,145.28,6.92834446]
[1749816021035,6.879,145.3,145.28,0.04844446]
[1749816022135,6.8787,145.31,145.28,6.92834446]
[1749816022529,0.04964343,145.32,145.28,0.04844446]
[1749816022831,6.8789,145.31,145.28,0.04844446]
[1749816023033,0.04964343,145.32,145.28,0.04844446]
[1749816023334,0.04964343,145.32,145.29,6.8792]
[1749816023633,0.04964343,145.32,145.28,0.04844446]
[1749816023835,6.879,145.3,145.28,0.04844446]
[1749816024030,6.879,145.3,145.23,44.6809164]
[1749816024031,4.9609164,145.3,145.23,44.6809164]
[1749816024628,6.8801,145.28,145.25,6.8811]
[1749816024931,4.9609164,145.3,145.23,44.6809164]
[1749816025130,6.8808,145.27,145.25,0.04741266]
[1749816025526,0.05013293,145.28,145.25,0.04741266]
[1749816025726,6.8808,145.26,145.25,0.04741266]
[1749816026729,6.8806,145.27,145.25,0.04741266]
[1749816027130,0.05013293,145.28,145.25,0.04741266]
[1749816027426,0.05013293,145.28,145.25,5.00832906]
[1749816027628,0.05013293,145.28,145.25,0.04741266]
[1749816027927,6.93023293,145.28,145.25,6.92841266]
[1749816028123,0.05013293,145.28,145.25,0.04741266]
[1749816028333,5.01104933,145.28,145.25,0.04741266]
[1749816028537,6.8808,145.26,145.25,0.04741266]
[1749816028831,5.01104933,145.28,145.25,0.04741266]
[1749816029028,0.05013293,145.28,145.25,0.04741266]
[1749816029229,6.8808,145.26,145.25,0.04741266]
[1749816032335,6.8806,145.27,145.25,0.04741266]
[1749816035235,6.8806,145.27,145.25,6.92871266]
[1749816035637,6.8806,145.27,145.25,0.04741266]
[1749816036337,0.05013293,145.28,145.25,5.00832906]
[1749816036535,0.05013293,145.28,145.27,4.9609164]
[1749816036936,0.05013293,145.28,145.26,4.9609164]
[1749816037430,0.05013293,145.28,145.26,11.8414164]
[1749816039132,0.05013293,145.28,145.27,6.8804]
[1749816039339,6.93033293,145.28,145.25,0.04741266]
[1749816039540,0.05013293,145.28,145.25,0.04741266]
[1749816040243,6.8806,145.27,145.25,0.04741266]
[1749816040842,6.8806,145.27,145.25,6.92841266]
[1749816041139,6.93023293,145.28,145.25,6.92841266]
[1749816042434,0.05013293,145.28,145.26,6.8807]
[1749816042631,0.05013293,145.28,145.26,11.8416164]
[1749816042835,0.05013293,145.28,145.25,0.04741266]
[1749816043645,0.05013293,145.28,145.27,6.8804]
[1749816045347,2.3966,145.34,145.26,4.9609164]
[1749816045550,2.3966,145.34,145.29,4.9609164]
[1749816045842,6.8779,145.33,145.29,4.9609164]
[1749816046047,2.3966,145.34,145.3,6.8787]
[1749816046348,6.92762471,145.33,145.31,0.04598721]
[1749816047040,6.878,145.32,145.31,0.04598721]
[1749816049245,6.92762471,145.33,145.31,0.04598721]
[1749816052546,0.05002471,145.33,145.31,0.04598721]
[1749816053158,0.05002471,145.33,145.32,6.878]
[1749816055059,0.05002471,145.33,145.32,45.478]
[1749816055263,2.1766,145.38,145.32,38.6]
[1749816055462,2.1766,145.38,145.34,4.96712806]
[1749816055766,9.0521,145.38,145.35,6.8763]
[1749816056052,6.8758,145.37,145.33,4.96712806]
[1749816056259,0.04720159,145.36,145.34,0.04759369]
[1749816057254,6.8766,145.35,145.34,0.04759369]
[1749816058658,10.65547687,145.35,145.29,43.56712806]
[1749816058856,4.96712806,145.35,145.29,43.56712806]
[1749816059554,6.8782,145.32,145.31,0.04418687]
[1749816060657,6.8782,145.32,145.13,41.2802]
[1749816060658,44.3041384,145.32,145.23,43.56712806]
[1749816060959,4.96712806,145.27,145.22,6.8823]
[1749816061269,4.96712806,145.27,145.2,38.6]
[1749816061448,5.01366015,145.25,145.22,0.05117305]
[1749816062254,0.04653209,145.25,145.22,5.02731497]
[1749816062654,0.04653209,145.25,145.24,6.8818]
[1749816062853,0.04653209,145.25,145.24,11.85794192]
[1749816063249,6.8795,145.29,145.26,6.8806]
[1749816063959,4.4432,145.31,145.25,4.97614192]
[1749816064158,0.04554479,145.29,145.27,0.05214021]
[1749816064551,5.02168671,145.29,145.22,6.8825]
[1749816064759,5.02168671,145.29,145.22,11.85864192]
[1749816065155,6.8811,145.26,145.23,6.8823]
[1749816065565,6.92515317,145.26,145.23,6.9281604]
[1749816065859,6.8814,145.25,145.23,0.0458604]
[1749816066063,4.97614192,145.25,145.23,0.0458604]
[1749816066467,6.8818,145.24,145.23,0.0458604]
[1749816067162,6.883,145.22,145.18,11.86054192]
[1749816067461,4.97614192,145.25,145.18,4.97614192]
[1749816067764,6.8825,145.23,145.19,6.8839]
[1749816068059,6.8825,145.23,145.2,0.04813891]
[1749816068364,0.05236147,145.22,145.2,0.04813891]
[1749816069464,6.93516147,145.22,145.2,0.04813891]
[1749816070163,0.05236147,145.22,145.2,0.04813891]
[1749816070664,0.05236147,145.22,145.2,5.02428083]
[1749816070859,4.4432,145.31,145.21,38.58]
[1749816071167,4.4432,145.31,145.24,4.97614192]
[1749816071168,6.8803,145.28,145.24,4.97614192]
[1749816071359,4.4432,145.31,145.24,11.85764192]
[1749816071559,5.65002926,145.3,145.24,11.85764192]
[1749816071763,6.8806,145.27,145.26,0.04509423]
[1749816080873,6.92597006,145.28,145.26,0.04509423]
[1749816081662,0.04597006,145.28,145.26,6.92589423]
[1749816081977,0.04597006,145.28,145.26,0.04509423]
[1749816082468,40.9565,145.35,145.27,4.97614192]
[1749816082671,40.9565,145.35,145.29,4.97614192]
[1749816082875,6.8778,145.33,145.3,6.8786]
[1749816083061,4.97614192,145.32,145.25,38.58]
[1749816083270,6.8803,145.28,145.27,0.04722045]
[1749816083766,6.8812,145.26,145.23,6.882]
[1749816084271,6.8812,145.26,145.22,439.87614192]
[1749816084473,6.8812,145.26,145.23,6.8819]
[1749816084665,6.92983408,145.26,145.23,6.93291673]
[1749816084870,6.8814,145.25,145.23,6.93291673]
[1749816086073,6.92973408,145.26,145.23,6.93291673]
[1749816086576,6.8815,145.25,145.23,0.05101673]
[1749816087372,6.8818,145.24,145.23,0.05101673]
[1749816088577,0.04863408,145.26,145.23,0.05101673]
[1749816089271,6.8816,145.25,145.23,0.05101673]
[1749816090278,6.8816,145.25,145.23,6.93321673]
[1749816090579,6.8816,145.25,145.23,0.05101673]
[1749816092279,6.8818,145.24,145.23,0.05101673]
[1749816093576,6.8816,145.25,145.23,0.05101673]
[1749816096779,6.8816,145.25,145.23,6.93321673]
[1749816096995,6.8816,145.25,145.23,0.05101673]
[1749816098782,6.8818,145.24,145.23,0.05101673]
[1749816099175,0.04863408,145.26,145.23,0.05101673]
[1749816099577,6.8818,145.24,145.23,0.05101673]
[1749816100987,4.97614192,145.25,145.19,38.54]
[1749816101186,7.38294192,145.25,145.19,38.54]
[1749816101387,7.38294192,145.25,145.19,45.4239]
[1749816101587,6.883,145.22,145.19,45.4239]
[1749816101986,6.92884514,145.22,145.19,45.47360268]
[1749816102287,6.8834,145.21,145.19,45.47360268]
[1749816102487,6.8834,145.21,145.19,38.58970268]
[1749816103288,6.8837,145.2,145.19,38.58970268]
[1749816103488,0.04584514,145.22,145.19,0.04970268]
[1749816103689,6.8832,145.21,145.19,0.04970268]
[1749816104988,0.04584514,145.22,145.19,0.04970268]
[1749816105295,0.04584514,145.22,145.2,4.97665484]
[1749816105497,0.04584514,145.22,145.21,6.8832]
[1749816107497,0.04584514,145.22,145.2,11.86025484]
[1749816108200,0.04584514,145.22,145.19,6.93360268]
[1749816108893,6.92884514,145.22,145.19,6.93360268]
[1749816109990,6.92884514,145.22,145.2,6.8836]
[1749816110596,0.04584514,145.22,145.2,6.8836]
[1749816112598,6.92864514,145.22,145.2,6.8836]
[1749816114095,0.04584514,145.22,145.2,6.8836]
[1749816114698,6.92864514,145.22,145.2,6.8836]
[1749816115897,0.04584514,145.22,145.2,6.8836]
[1749816116201,0.04584514,145.22,145.21,6.8832]
[1749816116907,0.04584514,145.22,145.2,6.8835]
[1749816117201,0.04584514,145.22,145.19,43.58507306]
[1749816117399,0.04584514,145.22,145.19,38.60970268]
[1749816117902,0.04584514,145.22,145.2,6.8834]
[1749816118497,6.92864514,145.22,145.19,45.49360268]
[1749816119593,6.8832,145.21,145.19,38.60970268]
[1749816120402,6.92884514,145.22,145.19,45.49370268]
[1749816120706,0.04584514,145.22,145.19,38.60970268]
[1749816120907,0.04584514,145.22,145.2,6.8834]
[1749816121609,0.04584514,145.22,145.21,6.8832]
[1749816122499,0.04584514,145.22,145.19,43.58507306]
[1749816122698,0.04584514,145.22,145.19,38.60970268]
[1749816123198,6.8835,145.21,145.19,0.04970268]
[1749816123399,0.04584514,145.22,145.19,0.04970268]
[1749816123713,6.8833,145.21,145.19,0.04970268]
[1749816124208,6.8833,145.21,145.19,6.93380268]
[1749816124703,6.8833,145.21,145.19,0.04970268]
[1749816125805,4.97537038,145.2,145.17,6.887]
[1749816126112,7.25497038,145.2,145.17,6.887]
[1749816126608,2.2796,145.2,145.17,6.887]
[1749816126807,2.3272897,145.2,145.17,0.04945465]
[1749816126999,0.0476897,145.2,145.18,6.8844]
[1749816128207,0.0476897,145.2,145.17,6.93435465]
[1749816128409,0.0476897,145.2,145.17,0.04945465]
[1749816129105,0.0476897,145.2,145.17,5.02482503]
[1749816129710,0.0476897,145.2,145.18,6.8843]
[1749816129907,0.0476897,145.2,145.17,5.02482503]
[1749816130802,0.0476897,145.2,145.18,6.8844]
[1749816132305,0.0476897,145.2,145.19,6.8842]
[1749816132705,0.0476897,145.2,145.17,5.02482503]
[1749816132910,0.0476897,145.2,145.18,6.8844]
[1749816133111,0.0476897,145.2,145.17,0.04945465]
[1749816133710,0.0476897,145.2,145.18,6.8846]
[1749816134407,0.0476897,145.2,145.17,6.93645465]
[1749816134408,0.0476897,145.2,145.17,0.04945465]
[1749816135008,6.8845,145.19,145.17,0.04945465]
[1749816135613,0.0476897,145.2,145.17,0.04945465]
[1749816136115,6.8846,145.19,145.17,0.04945465]
[1749816137209,0.0476897,145.2,145.17,6.93445465]
[1749816137408,0.0476897,145.2,145.17,0.04945465]
[1749816137614,0.0476897,145.2,145.17,5.02482503]
[1749816138007,0.0476897,145.2,145.18,6.8845]
[1749816138415,0.0476897,145.2,145.17,5.02482503]
[1749816139715,0.0476897,145.2,145.17,11.90942503]
[1749816140517,0.0476897,145.2,145.18,6.8845]
[1749816142117,0.0476897,145.2,145.17,11.90972503]
[1749816143114,6.9314897,145.2,145.17,6.93435465]
[1749816143816,0.0476897,145.2,145.18,6.8846]
[1749816144115,0.0476897,145.2,145.17,0.04945465]
[1749816144816,5.74068887,145.19,145.17,0.04945465]
[1749816145021,0.0476897,145.2,145.17,0.04945465]
[1749816145223,5.74050345,145.19,145.17,0.04945465]
[1749816145522,0.0476897,145.2,145.17,0.04945465]
[1749816145821,6.8846,145.18,145.17,0.04945465]
[1749816146718,6.8844,145.19,145.17,0.04945465]
[1749816148825,6.9315897,145.2,145.17,6.93445465]
[1749816149817,6.9315897,145.2,145.18,6.8845]
[1749816150318,0.0476897,145.2,145.18,6.8846]
[1749816150617,0.0476897,145.2,145.17,0.04945465]
[1749816150812,6.9315897,145.2,145.17,0.04945465]
[1749816151012,0.0476897,145.2,145.17,0.04945465]
[1749816151231,38.5,145.26,145.17,0.04945465]
[1749816151232,6.42416395,145.32,145.18,190.45074076]
[1749816151435,8.28207129,145.31,145.26,6.8807]
[1749816151620,8.28079372,145.3,145.27,4.97537038]
[1749816151821,5.69801908,145.29,145.27,4.97537038]
[1749816152129,2.58269988,145.28,145.27,11.85567038]
[1749816152422,0.04365619,145.29,145.27,0.04927649]
[1749816152818,10.60930251,145.28,145.21,40.56]
[1749816153015,4.97537038,145.24,145.18,45.53537038]
[1749816153225,11.85737038,145.24,145.18,40.54]
[1749816153830,0.04549425,145.22,145.2,0.05060417]
[1749816158645,0.04549425,145.22,145.2,6.93430417]
[1749816159235,0.04549425,145.22,145.2,0.05060417]
[1749816162247,4.97645769,145.21,145.2,0.05060417]
[1749816162447,4.97645769,145.21,145.15,42.9127]
[1749816162748,2.34739425,145.22,145.16,6.8856]
[1749816162749,6.884,145.2,145.16,6.8856]
[1749816162946,49.16316395,145.26,145.15,42.9127]
[1749816162947,4.97789656,145.24,145.17,4.97789656]
[1749816163249,6.8832,145.22,145.18,6.8844]
[1749816163440,0.0517307,145.21,145.19,0.04440684]
[1749816163643,0.0517307,145.21,145.19,5.0223034]
[1749816163849,0.0517307,145.21,145.19,11.9062034]
[1749816164544,0.0517307,145.21,145.2,6.8837]
[1749816165351,2.33,145.26,145.21,6.8828]
[1749816166447,6.92569253,145.25,145.22,0.05259993]
[1749816166849,6.8819,145.24,145.22,0.05259993]
[1749816167550,1.12537687,145.32,145.29,6.8794]
[1749816167748,4.97359111,145.35,145.28,40.54]
[1749816167945,10.54765796,145.34,145.28,4.97359111]
[1749816168146,5.6436208,145.33,145.28,4.97359111]
[1749816168349,4.5766,145.34,145.28,4.97359111]
[1749816168542,0.04842296,145.32,145.3,0.05058383]
[1749816169152,0.04842296,145.32,145.31,4.97359111]
[1749816169349,42.9215,145.38,145.31,4.97359111]
[1749816169543,5.45133479,145.37,145.33,4.97359111]
[1749816169748,42.9215,145.38,145.33,4.97359111]
[1749816169952,5.44542154,145.37,145.34,6.8767]
[1749816170349,5.49752187,145.37,145.34,6.92555001]
[1749816170555,0.05210033,145.37,145.34,6.92555001]
[1749816170851,0.05210033,145.37,145.35,6.8763]
[1749816171353,0.05210033,145.37,145.36,6.8761]
[1749816172253,2.1704,145.4,145.35,8.51294739]
[1749816172450,4.4807,145.4,145.34,0.04885001]
[1749816172650,4.4807,145.4,145.35,8.51294739]
[1749816172850,11.3551,145.4,145.35,8.51294739]
[1749816173360,0.04426064,145.39,145.35,8.51294739]
[1749816173551,0.04426064,145.39,145.36,6.876]
[1749816174448,0.04426064,145.39,145.37,6.8755]
[1749816175447,0.04426064,145.39,145.36,6.8759]
[1749816175757,6.91896064,145.39,145.34,8.55898346]
[1749816176251,6.91896064,145.39,145.36,15.38593345]
[1749816176857,6.91896064,145.39,145.36,6.8758]
[1749816177458,0.04426064,145.39,145.36,6.8758]
[1749816177855,6.91926064,145.39,145.35,15.38653345]
[1749816179154,0.04426064,145.39,145.36,6.876]
[1749816179551,0.04426064,145.39,145.35,8.51013345]
[1749816179754,0.04426064,145.39,145.38,6.8752]
[1749816180155,40.52,145.46,145.4,8.51013345]
[1749816180454,40.52,145.46,145.38,8.51013345]
[1749816180650,49.03013345,145.46,145.36,15.39713345]
[1749816180856,8.51013345,145.44,145.35,8.51013345]
[1749816181058,8.51013345,145.44,145.34,40.52]
[1749816181059,0.04948527,145.41,145.38,0.04587553]
[1749816181258,8.51013345,145.4,145.38,0.04587553]
[1749816182263,6.8747,145.39,145.38,0.04587553]
[1749816191669,0.04948527,145.41,145.38,0.04587553]
[1749816192662,6.8745,145.4,145.38,0.04587553]
[1749816195171,0.04948527,145.41,145.38,0.04587553]
[1749816196570,6.8747,145.39,145.38,0.04587553]
[1749816199876,5.01532763,145.41,145.34,6.8768]
[1749816200070,2.3386,145.4,145.34,6.8768]
[1749816200473,6.876,145.37,145.34,6.8768]
[1749816200671,2.3386,145.4,145.34,6.8768]
[1749816200879,11.84144236,145.37,145.36,0.05102054]
[1749816201075,11.84144236,145.37,145.29,46.52584236]
[1749816201076,4.96584236,145.37,145.29,46.52584236]
[1749816201279,4.96937962,145.35,145.29,41.56]
[1749816201472,4.96937962,145.35,145.29,48.4394]
[1749816201671,2.342,145.37,145.29,48.4394]
[1749816201873,7.31137962,145.37,145.31,6.8782]
[1749816202178,0.04723548,145.35,145.33,0.04514029]
[1749816202480,6.877,145.34,145.33,0.04514029]
[1749816203083,6.92393548,145.35,145.33,0.04514029]
[1749816203284,0.04723548,145.35,145.33,0.04514029]
[1749816205374,0.04723548,145.35,145.34,6.877]
[1749816209478,0.04723548,145.35,145.34,11.84637962]
[1749816209682,6.8744,145.4,145.34,11.85637962]
[1749816209979,6.8744,145.4,145.36,11.85034475]
[1749816210185,2.52858036,145.39,145.37,13.7623]
[1749816210379,6.8747,145.39,145.37,13.7623]
[1749816210787,6.92546497,145.39,145.37,13.80673149]
[1749816211885,0.05076497,145.39,145.37,13.80673149]
[1749816212385,0.05076497,145.39,145.37,6.93143149]
[1749816212586,0.05076497,145.39,145.37,0.04443149]
[1749816212778,6.8752,145.38,145.37,0.04443149]
[1749816213474,6.92566497,145.39,145.37,0.04443149]
[1749816214190,6.8752,145.38,145.37,0.04443149]
[1749816214377,0.05076497,145.39,145.37,0.04443149]
[1749816215483,6.8752,145.38,145.37,0.04443149]
[1749816215892,9.41932957,145.38,145.37,0.04443149]
[1749816216184,9.41931547,145.38,145.37,0.04443149]
[1749816216489,6.8752,145.38,145.37,0.04443149]
[1749816216684,9.41931779,145.38,145.37,0.04443149]
[1749816216886,9.41931315,145.38,145.37,0.04443149]
[1749816217187,9.41931779,145.38,145.37,0.04443149]
[1749816217489,9.41931547,145.38,145.37,0.04443149]
[1749816217681,9.41933189,145.38,145.37,0.04443149]
[1749816217883,6.8752,145.38,145.37,0.04443149]
[1749816218077,9.41932957,145.38,145.37,0.04443149]
[1749816218286,6.8752,145.38,145.37,0.04443149]
[1749816219690,5.01410972,145.39,145.3,49.07350542]
[1749816219691,9.97745447,145.39,145.3,49.07350542]
[1749816219888,4.96334475,145.36,145.3,40.66]
[1749816220793,0.0517632,145.34,145.32,0.04649594]
[1749816221191,6.8778,145.33,145.32,0.04649594]
[1749816221989,6.9289632,145.34,145.32,0.04649594]
[1749816223093,6.8775,145.33,145.32,0.04649594]
[1749816225393,5.01510795,145.34,145.27,40.66]
[1749816225692,2.2676,145.35,145.27,40.66]
[1749816225693,4.96334475,145.32,145.27,6.8801]
[1749816225894,6.8792,145.3,145.27,6.8801]
[1749816226088,4.96334475,145.32,145.27,6.8801]
[1749816226389,0.04336239,145.31,145.28,0.05210792]
[1749816226986,6.8794,145.29,145.28,0.05210792]
[1749816227289,0.04336239,145.31,145.28,0.05210792]
[1749816227695,6.8794,145.3,145.28,0.05210792]
[1749816228597,0.04336239,145.31,145.28,0.05210792]
[1749816229895,6.92186239,145.31,145.29,6.8792]
[1749816230193,0.04336239,145.31,145.28,0.05210792]
[1749816230388,6.92206239,145.31,145.28,6.93190792]
[1749816231204,6.879,145.3,145.28,0.05210792]
[1749816231496,0.04336239,145.31,145.28,0.05210792]
[1749816231497,5.00670714,145.31,145.28,0.05210792]
[1749816231689,6.8794,145.29,145.28,0.05210792]
[1749816232891,11.84274475,145.29,145.28,0.05210792]
[1749816233292,4.96334475,145.29,145.23,6.8819]
[1749816233791,6.8808,145.27,145.22,12.73556426]
[1749816233990,6.8808,145.27,145.24,6.8817]
[1749816234187,6.8809,145.26,145.24,6.92714816]
[1749816234493,0.04467185,145.27,145.24,0.04544816]
[1749816235199,0.04467185,145.27,145.26,6.8808]
[1749816243506,6.92507185,145.27,145.25,47.5609]
[1749816243709,6.92507185,145.27,145.25,40.68]
[1749816244109,6.92507185,145.27,145.25,6.8812]
[1749816245110,0.04467185,145.27,145.25,6.8812]
[1749816246410,0.04467185,145.27,145.26,6.8808]
[1749816251509,6.39774644,145.37,145.26,46.24]
[1749816251808,5.56644091,145.36,145.32,4.96463075]
[1749816252011,6.8727,145.44,145.38,6.8751]
[1749816252208,5.5142306,145.43,145.38,4.96463075]
[1749816252415,5.5142306,145.42,145.38,4.96463075]
[1749816252618,0.04389403,145.41,145.39,6.92731763]
[1749816252811,0.04389403,145.41,145.39,0.05291763]
[1749816253319,0.04389403,145.41,145.4,6.8742]
[1749816253611,4.4598,145.46,145.39,5.01754838]
[1749816253811,6.8696,145.5,145.44,6.8719]
[1749816254013,46.9539,145.52,145.42,46.74]
[1749816254014,4.5325,145.51,145.42,46.74]
[1749816254216,6.8695,145.5,145.44,6.8719]
[1749816254414,0.04439016,145.48,145.46,0.05171637]
[1749816254814,0.04439016,145.48,145.47,6.8709]
[1749816255119,0.04439016,145.48,145.46,0.05171637]
[1749816255120,4.7128,145.55,145.46,0.05171637]
[1749816255423,11.5799,145.55,145.49,6.87]
[1749816255618,4.7128,145.55,145.49,6.87]
[1749816255820,11.58,145.55,145.49,6.87]
[1749816256121,0.04521546,145.53,145.51,0.04539179]
[1749816256414,0.05017428,145.53,145.51,0.04398348]
[1749816258220,0.05017428,145.53,145.52,6.8685]
[1749816258521,0.05017428,145.53,145.52,15.36191236]
[1749816258815,0.05017428,145.53,145.52,6.8685]
[1749816259019,0.05017428,145.53,145.52,15.36191236]
[1749816259420,2.1702,145.56,145.53,6.8678]
[1749816259625,2.1702,145.56,145.52,8.49341236]
[1749816259823,2.1702,145.56,145.53,6.8677]
[1749816260230,2.1702,145.56,145.51,0.04398348]
[1749816260527,2.22084665,145.56,145.51,0.04398348]
[1749816260722,10.71425901,145.56,145.51,0.04398348]
[1749816261121,6.8672,145.55,145.51,0.04398348]
[1749816261323,2.22084665,145.56,145.51,0.04398348]
[1749816261520,9.08754665,145.56,145.51,0.04398348]
[1749816261917,2.22084665,145.56,145.51,8.53739584]
[1749816262323,2.22084665,145.56,145.51,15.40629584]
[1749816262626,2.22084665,145.56,145.51,8.53739584]
[1749816262933,2.22084665,145.56,145.52,6.8682]
[1749816263433,2.22084665,145.56,145.53,6.8679]
[1749816263633,2.22084665,145.56,145.51,8.53739584]
[1749816263926,2.22084665,145.56,145.53,8.49341236]
[1749816264326,2.22084665,145.56,145.54,6.8672]
[1749816264524,2.22084665,145.56,145.54,6.91290094]
[1749816264726,2.22084665,145.56,145.54,0.04570094]
[1749816264926,2.22084665,145.56,145.54,6.91320094]
[1749816266328,2.22084665,145.56,145.54,0.04570094]
[1749816266929,2.22084665,145.56,145.54,6.91300094]
[1749816267130,2.22084665,145.56,145.54,0.04570094]
[1749816268131,2.22084665,145.56,145.54,6.91300094]
[1749816271136,2.22084665,145.56,145.54,0.04570094]
[1749816272942,2.22084665,145.56,145.49,8.49341236]
[1749816273134,6.8674,145.55,145.49,8.49341236]
[1749816273339,2.1702,145.56,145.49,8.49341236]
[1749816273537,9.0371,145.56,145.49,8.49341236]
[1749816273840,0.04447809,145.54,145.52,6.8682]
[1749816274640,0.04447809,145.54,145.53,6.8681]
[1749816277135,0.04447809,145.54,145.52,63.7884]
[1749816277332,0.04447809,145.54,145.52,56.92]
[1749816278740,0.04447809,145.54,145.53,6.8681]
[1749816280543,4.97672298,145.57,145.52,65.41174008]
[1749816281138,4.97672298,145.57,145.54,6.8673]
[1749816281446,4.97672298,145.57,145.52,65.41174008]
[1749816281741,6.8697,145.5,145.35,83.81407467]
[1749816281942,8.49316692,145.54,145.44,8.49316692]
[1749816282142,8.49316692,145.55,145.46,8.49316692]
[1749816282343,6.8693,145.51,145.46,8.49316692]
[1749816282742,0.05246508,145.5,145.47,0.05119998]
[1749816283248,0.05246508,145.5,145.47,6.92179998]
[1749816284038,0.05246508,145.5,145.48,6.8704]
[1749816284448,0.05246508,145.5,145.47,0.05119998]
[1749816284948,0.05246508,145.5,145.49,6.87]
[1749816285146,55.08,145.56,145.48,8.49316692]
[1749816285344,55.08,145.56,145.48,63.57316692]
[1749816285547,4.97672298,145.57,145.5,8.49316692]
[1749816285746,6.8669,145.56,145.52,6.8685]
[1749816285943,6.8669,145.56,145.5,8.49316692]
[1749816286249,0.05267153,145.54,145.52,0.04621187]
[1749816286648,0.05267153,145.54,145.53,6.8677]
[1749816287345,2.73902298,145.57,145.56,6.8667]
[1749816287549,2.73902298,145.57,145.53,56.86]
[1749816288241,0.05010178,145.56,145.54,0.04797005]
[1749816290557,6.8671,145.55,145.54,0.04797005]
[1749816290746,7.90835996,145.56,145.5,6.8693]
[1749816291552,7.90835996,145.56,145.51,6.869]
[1749816291852,7.90835996,145.56,145.52,0.04724968]
[1749816292151,0.05010178,145.56,145.52,6.91534968]
[1749816292351,2.50627579,145.55,145.52,6.91534968]
[1749816292540,6.91710178,145.56,145.53,6.868]
[1749816292744,0.05010178,145.56,145.53,6.868]
[1749816293442,0.05010178,145.56,145.52,0.04724968]
[1749816293949,0.05010178,145.56,145.53,6.8678]
[1749816294152,0.05010178,145.56,145.52,7.90984517]
[1749816294549,0.05010178,145.56,145.55,6.8671]
[1749816296057,0.05010178,145.56,145.53,6.868]
[1749816296354,0.05010178,145.56,145.52,0.04724968]
[1749816296550,0.05010178,145.56,145.55,6.8671]
[1749816296757,0.05010178,145.56,145.55,14.72969549]
[1749816298554,0.05010178,145.56,145.55,6.8671]
[1749816299056,2.187,145.63,145.54,64.72259549]
[1749816299354,2.51220703,145.62,145.56,7.86259549]
[1749816299561,9.0507,145.63,145.59,6.8649]
[1749816299950,5.46123378,145.62,145.59,6.8649]
[1749816300251,12.37020446,145.62,145.6,0.04558505]
[1749816300441,5.46123378,145.61,145.6,0.04558505]
[1749816300648,0.04487068,145.62,145.6,0.04558505]
[1749816300843,0.04487068,145.62,145.6,6.91008505]
[1749816301048,0.04487068,145.62,145.6,0.04558505]
[1749816301246,0.04487068,145.62,145.61,6.8643]
[1749816301547,5.50725607,145.62,145.61,6.8643]
[1749816301747,8.57749121,145.67,145.6,0.04558505]
[1749816301748,2.1694,145.67,145.6,7.90818054]
[1749816301946,7.97317591,145.66,145.6,7.90818054]
[1749816302254,12.32464356,145.65,145.6,7.90818054]
[1749816302454,5.46184356,145.64,145.62,6.8638]
[1749816302758,0.05259676,145.64,145.62,6.8638]
[1749816302953,0.05259676,145.64,145.6,0.04558505]
[1749816303162,5.46193343,145.63,145.6,0.04558505]
[1749816303453,0.05259676,145.64,145.6,0.04558505]
[1749816304059,0.05259676,145.64,145.62,6.8636]
[1749816304558,0.05259676,145.64,145.6,0.04558505]
[1749816304854,0.05259676,145.64,145.61,7.86259549]
[1749816305454,0.05259676,145.64,145.63,6.8634]
[1749816307252,0.05259676,145.64,145.63,14.72599549]
[1749816309561,20.5659,145.81,145.63,7.86259549]
[1749816309757,13.31612761,145.73,145.63,7.86259549]
[1749816309966,5.45353212,145.72,145.63,7.86259549]
[1749816310263,6.8604,145.7,145.63,7.86259549]
[1749816310760,0.05183772,145.68,145.66,6.8616]
[1749816310965,0.05102046,145.68,145.66,6.90536745]
[1749816311262,0.05102046,145.68,145.66,0.04376745]
[1749816311668,0.05102046,145.68,145.67,6.8615]
[1749816312066,4.6415,145.75,145.69,6.8603]
[1749816313155,0.04426576,145.73,145.71,0.04842528]
[1749816313359,6.8593,145.72,145.71,0.04842528]
[1749816313964,6.90306576,145.73,145.71,0.04842528]
[1749816314163,0.04426576,145.73,145.71,0.04842528]
[1749816314469,7.86259549,145.81,145.73,6.8584]
[1749816314670,4.7044,145.79,145.73,6.8584]
[1749816315069,6.8575,145.76,145.73,6.8584]
[1749816315363,12.56699549,145.79,145.72,6.8587]
[1749816315567,6.8579,145.75,145.72,6.8587]
[1749816315770,6.8579,145.75,145.74,0.04965824]
[1749816317059,6.8594,145.72,145.67,61.687]
[1749816317267,7.86259549,145.77,145.67,54.8]
[1749816317466,67.36699549,145.79,145.71,6.8592]
[1749816317664,67.36699549,145.79,145.68,7.86259549]